bitfinex/quotes_SOLUSD_20260228
["timestamp","ask_amount","ask_price","bid_price","bid_amount"]
[1772294520134,9.62813,80.782,80.752,0.54952607]
[1772294520324,12.37669715,80.797,80.753,0.54952607]
[1772294520519,6.13052552,80.79,80.753,0.54952607]
[1772294521417,12.37792273,80.789,80.755,0.54952607]
[1772294521641,43.32272957,80.789,80.755,0.54952607]
[1772294522230,43.32272957,80.789,80.73,6.13052552]
[1772294522231,6.26597764,80.77,80.73,6.13052552]
[1772294522446,0.13545212,80.776,80.74,6.13052552]
[1772294522631,1.23883499,80.779,80.751,0.54952607]
[1772294522824,1.23883499,80.786,80.751,0.54952607]
[1772294523238,1.23883499,80.786,80.761,0.54952607]
[1772294523522,43.32487465,80.785,80.761,0.54952607]
[1772294523741,1.23883499,80.784,80.761,0.54952607]
[1772294526046,43.32594728,80.783,80.761,0.54952607]
[1772294526247,1.23883499,80.782,80.761,0.54952607]
[1772294527848,0.53594876,80.781,80.74,16.41403182]
[1772294528033,0.53594876,80.779,80.74,16.41403182]
[1772294528341,0.53594876,80.776,80.737,12.38575471]
[1772294528548,0.53594876,80.774,80.74,16.41403182]
[1772294528762,0.53594876,80.772,80.74,16.41403182]
[1772294529057,0.53594876,80.77,80.73,28.80085208]
[1772294529253,0.53594876,80.768,80.73,16.41403182]
[1772294529461,0.53594876,80.766,80.73,16.41403182]
[1772294529657,1.77478375,80.765,80.731,0.49493315]
[1772294529954,1.23883499,80.765,80.731,0.49493315]
[1772294530155,2.17510304,80.786,80.761,0.49493315]
[1772294530341,12.91359059,80.791,80.771,0.49493315]
[1772294530543,0.58683315,80.821,80.78,16.41403182]
[1772294530856,0.58683315,80.829,80.81,16.41403182]
[1772294531155,0.58683315,80.829,80.8,16.41403182]
[1772294531745,0.58683315,80.829,80.81,16.41403182]
[1772294532143,0.58683315,80.849,80.81,16.41403182]
[1772294532349,0.58683315,80.849,80.802,0.12046884]
[1772294532350,0.58683315,80.829,80.79,16.52620632]
[1772294532552,0.58683315,80.829,80.791,0.1121745]
[1772294533460,0.58683315,80.829,80.8,16.51800383]
[1772294533638,0.58683315,80.829,80.8,16.41403182]
[1772294534154,0.58683315,80.829,80.79,16.41403182]
[1772294534341,0.58683315,80.827,80.79,16.41403182]
[1772294534541,0.58683315,80.827,80.79,16.50989171]
[1772294534951,0.58683315,80.827,80.783,0.09585989]
[1772294535755,0.58683315,80.827,80.79,16.41403182]
[1772294536253,0.61465937,80.817,80.77,16.50186849]
[1772294537563,0.61465937,80.815,80.77,16.50186849]
[1772294537854,0.61465937,80.815,80.77,0.08783667]
[1772294538061,0.61465937,80.815,80.772,0.07205121]
[1772294539669,0.61465937,80.813,80.78,16.41403182]
[1772294540160,0.61465937,80.813,80.761,1.23822141]
[1772294540161,0.61465937,80.813,80.77,16.41403182]
[1772294541151,0.61465937,80.811,80.77,16.46303671]
[1772294541360,0.61465937,80.811,80.78,16.41403182]
[1772294542053,0.61465937,80.825,80.791,0.04148598]
[1772294542262,0.61465937,80.825,80.8,16.41403182]
[1772294543642,0.61465937,80.825,80.79,16.44807837]
[1772294543861,0.61465937,80.823,80.79,16.44807837]
[1772294544166,12.37013644,80.84,80.811,0.02668536]
[1772294544462,12.37013644,80.84,80.82,16.41403182]
[1772294544759,49.45770136,80.878,80.83,16.41403182]
[1772294544760,12.36858379,80.85,80.83,16.41403182]
[1772294546967,0.61465937,80.849,80.82,12.3731125]
[1772294547167,0.61465937,80.849,80.81,16.41403182]
[1772294547375,0.61465937,80.839,80.795,12.37688964]
[1772294547564,0.61465937,80.839,80.8,16.41403182]
[1772294549156,0.61465937,80.837,80.8,16.41403182]
[1772294550474,0.61465937,80.835,80.8,16.41403182]
[1772294551149,0.61465937,80.835,80.791,12.37761631]
[1772294552868,16.41403182,80.84,80.791,12.37761631]
[1772294552869,0.61465937,80.833,80.791,12.37761631]
[1772294553071,0.61465937,80.833,80.8,16.41403182]
[1772294553655,0.61465937,80.829,80.79,16.41403182]
[1772294554669,0.61465937,80.827,80.78,16.41403182]
[1772294554977,0.61465937,80.819,80.78,16.41403182]
[1772294555858,0.61465937,80.819,80.79,16.41403182]
[1772294556374,0.61465937,80.834,80.81,16.41403182]
[1772294556679,12.9858444,80.833,80.81,16.41403182]
[1772294556855,0.61465937,80.832,80.81,16.41403182]
[1772294557963,0.61465937,80.832,80.8,16.41403182]
[1772294558364,0.61465937,80.832,80.79,16.41403182]
[1772294558564,0.61465937,80.832,80.8,16.41403182]
[1772294558878,0.61465937,80.83,80.8,16.41403182]
[1772294559054,0.61465937,80.829,80.79,16.41403182]
[1772294559253,0.61465937,80.829,80.78,16.41403182]
[1772294559475,0.61465937,80.809,80.742,1.23851279]
[1772294559673,0.61465937,80.789,80.74,16.41403182]
[1772294560856,3.69383402,80.811,80.703,1.2391113]
[1772294560857,0.61465937,80.777,80.731,12.38681547]
[1772294561056,0.61465937,80.777,80.74,16.41403182]
[1772294561877,12.3796083,80.778,80.75,16.41403182]
[1772294562880,12.3796083,80.778,80.751,12.38374756]
[1772294564259,12.96536876,80.785,80.76,16.41403182]
[1772294565361,12.37853561,80.785,80.761,12.38221418]
[1772294566672,0.58683315,80.804,80.77,16.41403182]
[1772294566872,0.58683315,80.804,80.78,16.41403182]
[1772294567082,0.58683315,80.804,80.753,6.7]
[1772294567272,0.58683315,80.787,80.75,16.41403182]
[1772294567662,0.58683315,80.787,80.751,43.34311648]
[1772294567967,0.58683315,80.787,80.76,16.41403182]
[1772294568162,0.58683315,80.787,80.729,4.93254625]
[1772294568163,0.58683315,80.787,80.75,16.41403182]
[1772294568977,0.58683315,80.787,80.76,16.41403182]
[1772294569894,12.37838239,80.786,80.761,12.38221418]
[1772294571767,12.37779828,80.79,80.761,12.38221418]
[1772294571975,0.58683315,80.794,80.77,16.41403182]
[1772294572279,0.58683315,80.801,80.77,16.41403182]
[1772294572477,0.58683315,80.801,80.78,16.41403182]
[1772294572778,12.37547181,80.805,80.78,16.41403182]
[1772294573279,12.37547181,80.805,80.78,16.40443202]
[1772294573780,12.96230496,80.805,80.78,16.40443202]
[1772294574374,12.96230496,80.805,80.781,12.37914856]
[1772294575487,0.58683315,80.804,80.781,12.37914856]
[1772294575691,0.58683315,80.812,80.781,12.37914856]
[1772294576763,0.58683315,80.819,80.79,16.40443202]
[1772294576965,30.9276983,80.834,80.8,16.40443202]
[1772294576966,12.95909523,80.826,80.8,16.40443202]
[1772294578086,12.95909523,80.826,80.801,12.37608445]
[1772294578272,12.37172018,80.83,80.801,12.37608445]
[1772294579687,0.58683315,80.829,80.79,28.78214723]
[1772294580783,0.58683315,80.829,80.79,59.72657104]
[1772294581167,0.58683315,80.829,80.8,16.40443202]
[1772294582886,0.58683315,80.827,80.8,16.40443202]
[1772294584794,0.58683315,80.836,80.801,12.37608445]
[1772294585106,12.37026682,80.839,80.81,16.40443202]
[1772294585780,0.58683315,80.859,80.82,16.40443202]
[1772294586487,0.58683315,80.858,80.82,16.40443202]
[1772294586893,0.58683315,80.856,80.821,12.37302186]
[1772294587996,12.36751301,80.857,80.79,16.40443202]
[1772294587997,0.58683315,80.829,80.79,16.40443202]
[1772294588999,0.58683315,80.827,80.791,12.37761631]
[1772294589895,0.58683315,80.827,80.8,16.40443202]
[1772294591088,0.58683315,80.825,80.795,12.37695232]
[1772294592194,0.58683315,80.823,80.791,12.37761631]
[1772294592784,0.58683315,80.823,80.8,16.40443202]
[1772294594286,0.58683315,80.823,80.801,12.37608445]
[1772294599932,12.37286877,80.822,80.8,16.40443202]
[1772294600089,0.58683315,80.821,80.8,16.40443202]
[1772294600597,0.58683315,80.821,80.792,12.377432]
[1772294601902,0.58683315,80.821,80.8,16.40443202]
[1772294603299,0.58683315,80.839,80.81,16.40443202]
[1772294603481,0.58683315,80.839,80.82,16.40443202]
[1772294604191,12.37041985,80.838,80.82,16.40443202]
[1772294605904,0.58683315,80.838,80.8,16.40443202]
[1772294606210,0.58683315,80.838,80.81,16.40443202]
[1772294607609,0.58683315,80.836,80.81,16.40443202]
[1772294608202,0.58683315,80.836,80.8,16.40443202]
[1772294608413,0.58683315,80.836,80.79,16.40443202]
[1772294609295,0.58683315,80.829,80.782,12.37886203]
[1772294609507,0.58683315,80.827,80.782,12.37886203]
[1772294609713,0.58683315,80.827,80.79,16.40443202]
[1772294610310,0.58683315,80.827,80.764,1.23817542]
[1772294610311,0.58683315,80.819,80.77,16.40443202]
[1772294610619,0.58683315,80.819,80.78,16.40443202]
[1772294612416,43.30718403,80.818,80.78,16.40443202]
[1772294612597,0.58683315,80.817,80.78,16.40443202]
[1772294612920,0.58683315,80.817,80.79,16.40443202]
[1772294614622,0.58683315,80.815,80.79,16.40443202]
[1772294615396,0.58683315,80.815,80.8,16.40443202]
[1772294615818,0.58683315,80.815,80.791,12.37761631]
[1772294616006,0.58683315,80.815,80.79,16.40443202]
[1772294617318,12.37409359,80.814,80.79,28.78217791]
[1772294617814,0.58683315,80.821,80.8,16.40443202]
[1772294618520,12.37317495,80.82,80.8,16.40443202]
[1772294618735,12.9600081,80.82,80.8,16.40443202]
[1772294619022,0.58683315,80.819,80.8,16.40443202]
[1772294619808,12.37348115,80.818,80.8,16.40443202]
[1772294620004,0.58683315,80.817,80.8,16.40443202]
[1772294621210,0.58683315,80.817,80.79,16.40443202]
[1772294622129,12.37378736,80.816,80.791,12.37761631]
[1772294623026,12.96058672,80.817,80.8,16.40443202]
[1772294625537,0.49479934,80.816,80.771,0.41316684]
[1772294625742,0.49479934,80.809,80.771,0.41316684]
[1772294627235,0.47287002,80.807,80.773,0.41316684]
[1772294630537,0.47287002,80.805,80.78,16.40443202]
[1772294630738,0.47287002,80.805,80.775,0.41316684]
[1772294632544,0.47287002,80.803,80.775,0.41316684]
[1772294635234,0.47287002,80.801,80.775,0.41316684]
[1772294635436,0.47287002,80.801,80.77,16.40835277]
[1772294635641,0.47287002,80.801,80.77,16.82151961]
[1772294635942,0.47287002,80.801,80.771,0.41316684]
[1772294637340,0.47287002,80.799,80.771,0.41316684]
[1772294637950,0.47287002,80.789,80.745,0.41316684]
[1772294638327,0.47287002,80.789,80.719,6.7]
[1772294638328,0.47287002,80.779,80.728,0.41316684]
[1772294638639,0.47287002,80.769,80.728,0.41316684]
[1772294639237,16.40835277,80.77,80.728,0.41316684]
[1772294639238,0.47287002,80.767,80.728,0.41316684]
[1772294639443,0.47287002,80.759,80.721,12.80151683]
[1772294639748,0.47287002,80.759,80.722,0.41316684]
[1772294640637,12.38129434,80.767,80.741,0.41316684]
[1772294640833,0.47287002,80.766,80.735,0.41316684]
[1772294642250,0.47287002,80.764,80.735,0.41316684]
[1772294643352,0.47287002,80.772,80.75,6.13279108]
[1772294644136,0.47287002,80.772,80.749,0.41316684]
[1772294644654,12.38068118,80.771,80.749,0.41316684]
[1772294644854,0.47287002,80.77,80.749,0.41316684]
[1772294645245,37.07732222,80.79,80.751,0.41316684]
[1772294645437,37.07732222,80.79,80.761,0.41316684]
[1772294645438,0.47287002,80.789,80.761,0.41316684]
[1772294646055,0.47287002,80.788,80.766,0.41316684]
[1772294646745,12.85109919,80.787,80.766,0.41316684]
[1772294646944,0.47287002,80.786,80.76,6.54595792]
[1772294649145,12.85140563,80.785,80.761,0.41316684]
[1772294649570,12.85140563,80.785,80.762,0.41316684]
[1772294653364,0.47287002,80.784,80.764,0.41316684]
[1772294655043,0.47287002,80.784,80.76,6.13279108]
[1772294655248,0.47287002,80.784,80.759,0.41316684]
[1772294655451,0.47287002,80.784,80.758,12.38264148]
[1772294655756,0.47287002,80.782,80.751,12.38374756]
[1772294655953,0.47287002,80.782,80.752,0.41316684]
[1772294658262,0.45425353,80.78,80.754,0.41316684]
[1772294659044,12.37864727,80.785,80.761,0.41316684]
[1772294659641,12.8329008,80.785,80.761,0.41316684]
[1772294659843,0.45425353,80.784,80.761,0.41316684]
[1772294660555,12.3779791,80.789,80.763,0.41316684]
[1772294660763,12.3779791,80.789,80.77,6.13279108]
[1772294661153,12.3779791,80.789,80.771,0.41316684]
[1772294661445,0.45425353,80.788,80.771,0.41316684]
[1772294661649,12.37822917,80.787,80.765,0.41316684]
[1772294662049,0.45425353,80.786,80.765,0.41316684]
[1772294664064,0.45425353,80.786,80.765,12.79474824]
[1772294665968,6.13279108,80.81,80.781,0.41316684]
[1772294665969,0.45425353,80.81,80.781,0.41316684]
[1772294666179,0.45425353,80.81,80.79,6.13279108]
[1772294666677,0.45425353,80.82,80.8,6.13279108]
[1772294666967,0.45425353,80.82,80.801,0.41316684]
[1772294667555,0.45425353,80.82,80.8,6.13279108]
[1772294667759,0.45425353,80.818,80.8,6.13279108]
[1772294671370,0.45425353,80.816,80.8,6.13279108]
[1772294673579,0.45425353,80.809,80.727,49.54969023]
[1772294673874,0.45425353,80.809,80.72,55.68678335]
[1772294673875,0.45425353,80.789,80.747,12.38434683]
[1772294675073,0.45425353,80.789,80.747,12.79751367]
[1772294675568,0.45425353,80.787,80.747,12.79751367]
[1772294675769,0.45425353,80.787,80.75,6.13279108]
[1772294676471,0.45425353,80.785,80.75,6.13279108]
[1772294676677,0.45425353,80.785,80.75,18.51662991]
[1772294676877,0.45425353,80.785,80.75,12.38383883]
[1772294678159,0.45425353,80.783,80.75,12.38383883]
[1772294678473,0.45425353,80.783,80.75,12.79700567]
[1772294679180,0.45425353,80.783,80.751,0.41316684]
[1772294682078,12.37899532,80.782,80.752,12.38359421]
[1772294682281,0.45425353,80.781,80.752,12.79676105]
[1772294682492,12.37899532,80.782,80.74,0.41316684]
[1772294682493,0.45425353,80.769,80.74,0.41316684]
[1772294682885,0.45425353,80.769,80.723,12.38804306]
[1772294683061,0.45425353,80.759,80.723,12.38804306]
[1772294683381,0.45425353,80.759,80.724,0.41316684]
[1772294684081,0.48080516,80.757,80.724,0.41316684]
[1772294685478,0.48080516,80.757,80.725,12.80090298]
[1772294686678,0.48259086,80.755,80.725,0.41316684]
[1772294688097,6.13279108,80.74,80.705,0.41316684]
[1772294688386,43.34150629,80.754,80.699,0.41316684]
[1772294688387,0.48259086,80.729,80.699,0.41316684]
[1772294688791,0.48259086,80.729,80.696,12.39211058]
[1772294688792,0.48259086,80.719,80.69,0.325343]
[1772294688991,0.48259086,80.719,80.68,6.64595792]
[1772294688992,0.48259086,80.709,80.68,0.1]
[1772294689582,303.3905441,80.754,80.67,0.2]
[1772294689583,0.48259086,80.689,80.67,0.2]
[1772294689777,0.48259086,80.689,80.67,1e-08]
[1772294689971,12.87587078,80.689,80.67,1e-08]
[1772294690286,0.48259086,80.688,80.67,1e-08]
[1772294690793,12.392604,80.694,80.671,0.4604341]
[1772294691272,0.48259086,80.705,80.671,0.4604341]
[1772294691667,12.39095955,80.704,80.671,0.4604341]
[1772294691993,0.48259086,80.703,80.671,0.4604341]
[1772294692177,12.39126663,80.702,80.673,0.4604341]
[1772294693585,0.48259086,80.701,80.673,0.4604341]
[1772294694593,0.48259086,80.699,80.673,0.4604341]
[1772294695090,0.48259086,80.699,80.675,0.4604341]
[1772294697189,0.48259086,80.715,80.68,6.13279108]
[1772294697401,111.05308211,80.73,80.691,0.4604341]
[1772294697402,0.48259086,80.723,80.691,0.4604341]
[1772294697693,7.85308211,80.73,80.701,0.4604341]
[1772294697894,20.2401801,80.73,80.701,0.4604341]
[1772294698288,7.85308211,80.73,80.701,0.4604341]
[1772294698611,12.38482116,80.744,80.712,0.4604341]
[1772294698901,12.38482116,80.744,80.721,0.4604341]
[1772294699804,0.48259086,80.743,80.713,0.4604341]
[1772294701100,12.38418921,80.749,80.721,0.4604341]
[1772294701490,12.38418921,80.749,80.723,0.4604341]
[1772294704882,12.86678007,80.749,80.723,0.4604341]
[1772294705087,0.48259086,80.748,80.723,0.4604341]
[1772294705303,0.48259086,80.748,80.701,12.39142018]
[1772294705608,0.48259086,80.748,80.701,43.36997063]
[1772294706110,0.48259086,80.748,80.71,6.13981875]
[1772294707407,0.48259086,80.746,80.712,0.4604341]
[1772294709112,0.48259086,80.744,80.712,0.4604341]
[1772294709312,0.48259086,80.757,80.73,6.13981875]
[1772294709496,0.48259086,80.765,80.731,0.4604341]
[1772294712799,0.48259086,80.763,80.732,0.4604341]
[1772294714000,0.48259086,80.739,80.71,0.4604341]
[1772294715107,0.48259086,80.737,80.711,12.38988489]
[1772294716022,0.48259086,80.737,80.71,0.4604341]
[1772294717420,0.45814505,80.735,80.71,12.85044964]
[1772294721505,6.13981875,80.76,80.721,0.46097641]
[1772294721506,0.45814505,80.742,80.721,0.46097641]
[1772294721698,0.45814505,80.742,80.707,0.46097641]
[1772294721901,0.45814505,80.739,80.707,0.46097641]
[1772294722612,0.45814505,80.739,80.701,0.46097641]
[1772294723098,0.45814505,80.729,80.695,0.46097641]
[1772294723499,0.45814505,80.727,80.695,0.46097641]
[1772294724905,0.45814505,80.727,80.697,0.46097641]
[1772294725123,0.45814505,80.719,80.676,0.46097641]
[1772294725308,0.45814505,80.709,80.676,0.46097641]
[1772294725507,0.45814505,80.707,80.676,0.46097641]
[1772294725708,43.36620904,80.708,80.67,6.13981876]
[1772294725709,0.45814505,80.699,80.67,1e-08]
[1772294726414,43.36620904,80.708,80.67,1e-08]
[1772294726415,0.45814505,80.689,80.67,1e-08]
[1772294727718,0.45814505,80.687,80.67,1e-08]
[1772294728122,61.95172721,80.708,80.67,1e-08]
[1772294728123,0.45814505,80.702,80.671,0.46097641]
[1772294728706,0.45814505,80.689,80.67,1e-08]
[1772294729716,0.45814505,80.687,80.67,1e-08]
[1772294731819,0.45814505,80.685,80.67,1e-08]
[1772294732017,0.45814505,80.679,80.65,0.1]
[1772294732723,6.13981875,80.66,80.64,0.2]
[1772294732932,6.13981875,80.66,80.59,6.7]
[1772294732933,0.45814505,80.649,80.61,0.2]
[1772294733224,6.13981875,80.63,80.59,0.46097641]
[1772294733426,0.45814505,80.645,80.611,0.46097641]
[1772294733812,12.39894856,80.652,80.621,0.46097641]
[1772294734018,0.45814505,80.651,80.621,0.46097641]
[1772294734619,0.45814505,80.649,80.621,0.46097641]
[1772294735237,0.45814505,80.649,80.611,0.46097641]
[1772294736031,0.45814505,80.647,80.611,0.46097641]
[1772294736534,12.39956353,80.648,80.613,0.46097641]
[1772294736828,12.39956353,80.648,80.621,0.46097641]
[1772294737034,16.4743342,80.67,80.631,0.46097641]
[1772294738734,43.38717474,80.669,80.631,0.46097641]
[1772294738944,0.39036145,80.668,80.631,0.46097641]
[1772294739933,0.39036145,80.668,80.602,1.240664]
[1772294739934,43.39847236,80.648,80.615,0.46097641]
[1772294740131,0.39078043,80.647,80.615,0.46097641]
[1772294740846,43.39847236,80.648,80.6,0.46097641]
[1772294740847,0.39120941,80.629,80.6,0.46097641]
[1772294741634,0.39120941,80.629,80.6,16.93531061]
[1772294741834,0.39162766,80.637,80.601,0.46097641]
[1772294742037,43.4049308,80.636,80.601,0.46097641]
[1772294742244,0.39162766,80.635,80.601,0.46097641]
[1772294742559,43.4049308,80.636,80.603,0.46097641]
[1772294742735,12.4014088,80.636,80.603,0.46097641]
[1772294742934,43.4049308,80.636,80.603,0.46097641]
[1772294743536,43.79738079,80.636,80.603,0.46097641]
[1772294744530,0.39324624,80.635,80.603,0.46097641]
[1772294746753,0.39442507,80.629,80.58,0.2]
[1772294746961,0.39442507,80.629,80.58,16.6743342]
[1772294747635,16.4743342,80.62,80.58,16.6743342]
[1772294747842,16.4743342,80.62,80.58,0.2]
[1772294747843,0.48736688,80.619,80.58,0.2]
[1772294748051,0.48736688,80.609,80.58,0.2]
[1772294748857,0.48736688,80.607,80.58,0.2]
[1772294749355,0.48736688,80.627,80.591,0.48965372]
[1772294750236,0.48736688,80.627,80.601,0.48965372]
[1772294750444,12.40263928,80.628,80.601,0.48965372]
[1772294750655,43.40923748,80.628,80.601,0.48965372]
[1772294750858,12.40263928,80.628,80.603,0.48965372]
[1772294751654,0.48736688,80.627,80.595,0.48965372]
[1772294751846,0.48736688,80.627,80.587,0.48965372]
[1772294752454,12.40263928,80.628,80.61,16.4743342]
[1772294752654,0.97869998,80.629,80.61,16.4743342]
[1772294752951,31.48721905,80.646,80.621,0.48965372]
[1772294753142,31.48721905,80.646,80.62,16.4743342]
[1772294753341,0.48736688,80.645,80.62,16.4743342]
[1772294753647,12.88739168,80.645,80.62,16.4743342]
[1772294754452,0.48736688,80.644,80.62,16.4743342]
[1772294754952,0.48736688,80.642,80.62,16.4743342]
[1772294755737,7.82430197,80.668,80.631,0.15653139]
[1772294755738,30.99328527,80.663,80.631,0.15653139]
[1772294755939,12.39741142,80.662,80.64,16.4743342]
[1772294756545,0.48736688,80.661,80.631,0.15653139]
[1772294756950,0.48736688,80.659,80.631,0.15653139]
[1772294757155,0.48736688,80.659,80.631,12.55870921]
[1772294757660,0.48736688,80.659,80.64,16.4743342]
[1772294758462,0.48736688,80.659,80.621,12.56427586]
[1772294758641,0.48736688,80.659,80.622,0.160663]
[1772294758838,0.48736688,80.659,80.63,16.4743342]
[1772294759364,0.48736688,80.657,80.63,16.46746845]
[1772294759859,0.48736688,80.657,80.622,0.160663]
[1772294761063,7.82430197,80.668,80.612,1.24051009]
[1772294761064,0.48736688,80.666,80.64,16.46746845]
[1772294761855,12.39695035,80.665,80.641,12.40063987]
[1772294762362,7.82430197,80.668,80.65,16.46746845]
[1772294762547,0.48736688,80.667,80.65,16.46746845]
[1772294763080,0.51172023,80.69,80.66,16.46746845]
[1772294763563,0.51172023,80.69,80.67,16.46746845]
[1772294763861,0.51172023,80.69,80.67,28.86356542]
[1772294764239,0.51172023,80.69,80.67,16.46746845]
[1772294764446,12.39326302,80.689,80.67,16.46746845]
[1772294764644,12.39326302,80.689,80.666,12.39671984]
[1772294765164,12.39326302,80.689,80.67,16.46746845]
[1772294765372,0.51172023,80.722,80.68,16.46746845]
[1772294765546,0.51172023,80.722,80.7,16.46746845]
[1772294765742,1.88310003,80.723,80.701,12.39142018]
[1772294765947,0.61983356,80.723,80.71,16.46746845]
[1772294766464,0.51172023,80.722,80.7,16.46746845]
[1772294766966,0.61983356,80.723,80.7,16.46746845]
[1772294767368,13.00802889,80.723,80.7,16.46746845]
[1772294767664,0.61983356,80.723,80.7,16.46746845]
[1772294767846,0.61983356,80.723,80.7,28.85893907]
[1772294768042,13.00787765,80.723,80.7,16.46746845]
[1772294769146,0.61983356,80.723,80.71,16.46746845]
[1772294771561,0.61983356,80.723,80.711,12.38988489]
[1772294772067,0.51172023,80.747,80.711,12.38988489]
[1772294772266,16.66746845,80.76,80.74,16.46746845]
[1772294772267,0.2,80.76,80.74,16.46746845]
[1772294772446,0.51172023,80.759,80.74,16.46746845]
[1772294772848,0.2,80.76,80.741,12.38528133]
[1772294772849,0.51172023,80.758,80.741,12.38528133]
[1772294773163,0.51172023,80.758,80.74,16.46746845]
[1772294773964,0.2,80.76,80.75,16.46746845]
[1772294775079,0.51172023,80.774,80.751,12.38374756]
[1772294775652,12.89089501,80.781,80.76,16.46746845]
[1772294775849,0.51172023,80.78,80.76,16.46746845]
[1772294776149,0.51172023,80.78,80.75,16.46746845]
[1772294777359,0.51172023,80.778,80.751,12.38374756]
[1772294779967,0.51172023,80.778,80.75,16.46746845]
[1772294780153,0.51172023,80.776,80.75,16.46746845]
[1772294780348,0.51172023,80.776,80.75,28.85127316]
[1772294780955,0.51172023,80.78,80.75,28.87545478]
[1772294781156,0.51172023,80.779,80.751,0.02418162]
[1772294781355,0.51172023,80.779,80.75,28.85127316]
[1772294782169,0.51172023,80.777,80.75,16.46746845]
[1772294782876,0.51172023,80.777,80.746,12.38449853]
[1772294784682,0.51172023,80.775,80.731,1.23868154]
[1772294784866,0.51172023,80.759,80.71,16.46746845]
[1772294785068,0.51172023,80.749,80.71,16.46746845]
[1772294785377,0.51172023,80.749,80.721,0.02969132]
[1772294785559,0.51172023,80.749,80.73,16.46746845]
[1772294785758,0.51172023,80.749,80.72,16.46746845]
[1772294786579,0.51172023,80.749,80.71,16.46746845]
[1772294786792,0.51172023,80.749,80.711,12.38988489]
[1772294786793,0.51172023,80.747,80.711,12.38988489]
[1772294787005,0.51172023,80.747,80.696,12.39218796]
[1772294787164,0.51172023,80.747,80.701,0.03075286]
[1772294789976,12.3845144,80.746,80.72,16.50135244]
[1772294790177,12.3845144,80.746,80.721,0.03388399]
[1772294791583,1.75040177,80.752,80.73,16.46746845]
[1772294791775,0.51172023,80.752,80.73,16.46746845]
[1772294791982,0.51172023,80.752,80.731,12.38681547]
[1772294792680,0.51172023,80.75,80.721,12.38834999]
[1772294792883,1.75040177,80.75,80.71,47.47928358]
[1772294793071,0.51172023,80.749,80.711,12.38988489]
[1772294793787,0.51172023,80.749,80.72,16.46746845]
[1772294794597,12.38083446,80.77,80.74,16.46746845]
[1772294794776,0.51172023,80.768,80.74,16.46746845]
[1772294795388,0.51172023,80.766,80.73,16.46746845]
[1772294795570,0.51172023,80.766,80.723,0.03981916]
[1772294795571,0.51172023,80.764,80.723,0.03981916]
[1772294795768,0.51172023,80.762,80.73,16.46746845]
[1772294795975,59.80038908,80.77,80.73,16.46746845]
[1772294795976,0.51172023,80.76,80.73,16.46746845]
[1772294796589,0.51172023,80.759,80.731,12.38681547]
[1772294797774,0.51172023,80.759,80.73,16.46746845]
[1772294797978,0.51172023,80.759,80.727,12.38729298]
[1772294798498,0.51172023,80.757,80.721,12.43099686]
[1772294798696,0.51172023,80.757,80.722,0.04264687]
[1772294799109,0.51172023,80.757,80.73,16.46746845]
[1772294799579,0.51172023,80.755,80.717,12.38882687]
[1772294799779,0.51172023,80.753,80.717,12.38882687]
[1772294799980,0.51172023,80.751,80.717,12.38882687]
[1772294800213,0.51172023,80.749,80.71,16.46746845]
[1772294800382,0.51172023,80.747,80.71,16.46746845]
[1772294800586,0.51172023,80.744,80.711,12.38988489]
[1772294800881,0.51172023,80.742,80.711,12.38988489]
[1772294801100,0.51172023,80.74,80.711,12.38988489]
[1772294801489,0.51172023,80.738,80.711,12.38988489]
[1772294801890,0.51172023,80.738,80.702,12.39126663]
[1772294802800,0.51172023,80.736,80.71,16.46746845]
[1772294803178,0.51172023,80.736,80.702,12.43753754]
[1772294804392,0.51172023,80.736,80.71,16.46746845]
[1772294805193,0.51172023,80.736,80.711,12.38988489]
[1772294805493,0.52018193,80.734,80.711,12.38988489]
[1772294807117,0.52018193,80.734,80.711,12.44127242]
[1772294808496,0.51172023,80.741,80.712,0.05300846]
[1772294808702,0.51172023,80.755,80.722,0.05300846]
[1772294809006,0.51172023,80.754,80.73,16.46746845]
[1772294809394,0.51172023,80.754,80.72,16.52047691]
[1772294809597,0.51172023,80.754,80.713,1.23895778]
[1772294809598,0.51172023,80.749,80.712,0.05380893]
[1772294809991,0.51172023,80.754,80.721,0.05380893]
[1772294810194,0.51172023,80.754,80.72,16.46746845]
[1772294810706,0.51172023,80.754,80.72,15.92924399]
[1772294811496,0.5057098,80.752,80.721,12.38834999]
[1772294812792,0.5057098,80.75,80.711,30.97471224]
[1772294812997,0.5057098,80.75,80.72,16.46746845]
[1772294814515,0.5057098,80.75,80.73,16.46746845]
[1772294814704,0.5057098,80.75,80.72,16.46746845]
[1772294815097,0.5057098,80.748,80.721,12.38834999]
[1772294816411,111.4077179,80.785,80.721,12.38834999]
[1772294816412,30.95274295,80.769,80.732,0.52769381]
[1772294816614,6.33262064,80.79,80.75,6.13262064]
[1772294816816,12.38002598,80.776,80.75,6.13262064]
[1772294817926,12.38022135,80.774,80.74,6.13262064]
[1772294818520,0.5057098,80.773,80.74,6.13262064]
[1772294818820,12.38022135,80.774,80.74,6.13262064]
[1772294818821,0.5057098,80.771,80.74,6.13262064]
[1772294819418,0.5057098,80.771,80.74,6.12963371]
[1772294819999,0.5057098,80.771,80.75,6.12963371]
[1772294820320,0.5057098,80.771,80.736,12.3859424]